Cogmind - Beta 13 @@@ ROGUE MODE // 2024.03.25 @ 07:10:04 Player: VLAM Result: Destroyed by as-90339 with Assembled Blade Performance ------------- Evolutions (1) 500 Regions Visited (4) 800 Robots Destroyed (19) 95 Value Destroyed (405) 405 Prototype IDs (0) 0 Alien Tech Used (0) 0 Bonus (200) 200 TOTAL SCORE: 2000 Bonus ------- Pacifist 200 Cogmind --------- Core Integrity 0/400 Matter 280/300 Energy 29/100 System Corruption 2% Temperature Warning (342) Movement Core (350) Ox6 Location -9/Mines Parts ------- > --- POWER (1) -------- (None) > --- PROPULSION (3) --- (None) > --- UTILITY (3) ------ Large Storage Unit > --- WEAPON (2) ------- (None) > --- INVENTORY (15) --- Ion Engine Light Treads Light Treads Aluminum Leg Compact Wheel Compact Wheel Cooling System Medium Matter Pod (100) Light Assault Rifle Shock Bomb Launcher Maul Peak State ------------ > --- POWER ------------ Light Ion Engine > --- PROPULSION ------- Aluminum Leg Aluminum Leg Aluminum Leg > --- UTILITY ---------- Large Storage Unit Propulsion Shielding Light Armor Plating > --- WEAPON ----------- Light Assault Rifle Shock Bomb Launcher > --- INVENTORY -------- Ion Engine Ion Engine Light Treads Light Treads Compact Wheel Compact Wheel Cooling System Medium Matter Pod Medium Laser Light Assault Rifle Shock Bomb Launcher Shock Bomb Launcher Shock Bomb Launcher Maul [Rating: 13] Favorites ----------- Power Light Ion Engine Engine Light Ion Engine Propulsion Aluminum Leg Leg Aluminum Leg Utility Large Storage Unit Device Cooling System Storage Large Storage Unit Protection Propulsion Shielding Weapon Light Assault Rifle Energy Gun Medium Laser Ballistic Gun Light Assault Rifle Launcher Shock Bomb Launcher Build | -11 -10 -10 -9 -9 ------- Run | Yrd Mat Min Mat Min Slots Evolved 2 | . . . 2 . Power . | . . . . . Propulsion 1 | . . . 1 . Utility 1 | . . . 1 . Weapon . | . . . . . Parts Attached 16 | 4 4 1 3 4 Power 2 | 1 . . . 1 Engine 2 | 1 . . . 1 Core . | . . . . . Reactor . | . . . . . Propulsion 3 | 2 . . 1 . Treads . | . . . . . Leg 3 | 2 . . 1 . Wheel . | . . . . . Hover . | . . . . . Flight . | . . . . . Utility 5 | 1 2 1 1 . Device 1 | . 1 . . . Storage 2 | 1 1 . . . Processor . | . . . . . Hackware . | . . . . . Protection 2 | . . 1 1 . Artifact . | . . . . . Weapon 6 | . 2 . 1 3 Energy Gun 1 | . . . . 1 Energy Cannon . | . . . . . Ballistic Gun 2 | . 2 . . . Ballistic Cannon . | . . . . . Launcher 3 | . . . 1 2 Special Weapon . | . . . . . Impact Weapon . | . . . . . Slashing Weapon . | . . . . . Piercing Weapon . | . . . . . Special Melee Weapon . | . . . . . Unidentified Prototypes . | . . . . . Parts Lost 10 | . . . 3 7 Power 2 | . . . 1 1 Propulsion 1 | . . . . 1 Utility 2 | . . . 2 . Weapon 5 | . . . . 5 Highest Loss Streak 10 | . . . 3 10 To Critical Strikes 1 | . . . . 1 Average Slot Usage (%) 88 | . 87 92 89 46 Engine 12 | . 14 14 11 2 Leg 26 | . 28 28 26 19 Storage 12 | . 14 14 11 11 Protection 10 | . . 7 18 . Ballistic Gun 21 | . 24 28 16 6 Launcher 2 | . . . 5 4 Naked Turns . | . . . . . Heaviest Build 34 | 8 25 26 34 33 Greatest Support 30 | 20 20 20 30 30 Greatest Overweight (x) 10 | . 1 1 1 10 Average Overweight (x) . | . . 1 . . Largest Inventory Capacity 15 | 8 15 15 15 15 Average Capacity 13 | 6 11 15 15 15 Most Carried 15 | 8 9 10 14 15 Average Carried 9 | 4 7 9 11 13 Final Capacity 15 | 8 15 15 15 15 Final Carried 14 | 8 9 10 14 11 Class Distribution -------------------- 100% | Mutant Dominant Class ---------------- Mutant | -10/Materials Mutant | -10/Mines Mutant | -9/Materials Mutant | -9/Mines Resources | -11 -10 -10 -9 -9 ----------- Run | Yrd Mat Min Mat Min Matter Collected 502 | 159 . 28 315 . Remotely . | . . . . . Salvage Created 766 | . . . 709 57 Parts 42 | . . . 41 1 Haulers Intercepted 1 | . . . 1 . Recyclers Shooed 1 | . . . 1 . Parts Field Recycled . | . . . . . Retrieved Matter . | . . . . . Parts Self-Destructed . | . . . . . Prevented . | . . . . . Kills | -11 -10 -10 -9 -9 ------- Run | Yrd Mat Min Mat Min Combat Hostiles Destroyed 16 | . . . 12 4 Guns 2 | . . . 2 . AOE 14 | . . . 10 4 Classes Destroyed 9 | . . . 8 1 Worker 1 | . . . 1 . Hauler 1 | . . . 1 . Recycler 2 | . . . 2 . Watcher 2 | . . . 2 . Swarmer 5 | . . . 4 1 Grunt 6 | . . . 6 . Brawler 1 | . . . 1 . Sentry 1 | . . . 1 . Assembled 3 | . . . . 3 Best Kill Streak 9 | . . . 9 3 Combat Bots Only 6 | . . . 6 3 Max Kills in Single Turn 4 | . . . 4 3 Gunslinging . | . . . . . Exploded 3 | . . . 2 3 Melee . | . . . . . Uniques/NPCs Destroyed . | . . . . . Combat | -11 -10 -10 -9 -9 -------- Run | Yrd Mat Min Mat Min Hostile Shots Fired 122 | . . . 50 72 Missed 31 | . . . 12 19 Damage Taken 1409 | . . . 497 912 Core 411 | . . . 68 343 Absorbed by Shields . | . . . . . Redirected to Shielding 36 | . . . 36 . Core Remaining (%) 100 | 100 . 100 . . Volleys Fired 34 | . . . 32 2 Largest 2 | . . . 2 2 Hottest 56 | . . . 56 56 Shots Fired 56 | . . . 53 3 Gun 42 | . . . 41 1 Cannon . | . . . . . Launcher 14 | . . . 12 2 Special . | . . . . . Kinetic 42 | . . . 41 1 Thermal . | . . . . . Explosive . | . . . . . Electromagnetic 14 | . . . 12 2 Robot Hit Streak 7 | . . . 7 3 Robot Miss Streak 6 | . . . 6 1 Penetration Max . | . . . . . Secondary Targets . | . . . . . Shots Hit Robots 35 | . . . 33 2 Core Hits 32 | . . . 29 3 Critical Kills . | . . . . . Critical Parts Destroyed 1 | . . . 1 . Critical Strikes 1 | . . . 1 . Destroy 1 | . . . 1 . Melee Attacks . | . . . . . Impact . | . . . . . Slashing . | . . . . . Piercing . | . . . . . Sneak Attacks . | . . . . . Combat Hostiles . | . . . . . Follow-up Attacks . | . . . . . Damage Inflicted 1332 | . . . 1124 208 Guns 245 | . . . 235 10 Cannons . | . . . . . Explosions 1086 | . . . 888 198 Melee . | . . . . . Ramming 1 | . . . 1 . Kinetic 245 | . . . 235 10 Thermal 63 | . . . 63 . Explosive . | . . . . . Electromagnetic 1023 | . . . 825 198 Impact . | . . . . . Slashing . | . . . . . Piercing . | . . . . . Highest Corruption 2 | . . . 1 2 Average Corruption 1 | . . . 1 1 Corruption Purged . | . . . . . Corruption Blocked . | . . . . . Effects 3 | . . . 1 2 Matter Fused 1 | . . . 1 . Heat Flow Errors 1 | . . . . 1 Alerts 1 | . . . . 1 Overload Shots . | . . . . . Overflow Damage 33 | . . . 24 9 Projectiles . | . . . . . Explosions 33 | . . . 24 9 Melee . | . . . . . Knockbacks . | . . . . . Impact . | . . . . . Kinetic . | . . . . . Secondary . | . . . . . Self-Inflicted Damage 90 | . . . 66 24 Shots 7 | . . . 5 2 Rammed 1 | . . . . 1 Targets Rammed 4 | 2 . . 1 1 Kicked 3 | 2 . . 1 . Crushed . | . . . . . Highest Temperature 342 | . . . 32 342 Average Temperature 19 | . . . 12 85 Received Heat Transfer 446 | . . . 186 260 Siege Activations . | . . . . . Robots Corrupted . | . . . . . Combat Hostiles . | . . . . . Parts Fried 2 | . . . 2 . Impact Corruptions . | . . . . . Robots Melted . | . . . . . Combat Hostiles . | . . . . . Parts Melted . | . . . . . Heat Transferred 150 | . . . 150 . Parts Sabotaged . | . . . . . Parts Stolen . | . . . . . Parts Stripped . | . . . . . Power Chain Reactions 3 | . . . 3 . Alert | -11 -10 -10 -9 -9 ------- Run | Yrd Mat Min Mat Min Peak Influence 182 | . . . 182 119 Initial 59 | . . . . 59 Average 33 | . . . 69 95 Maximum Alert Level . | . . . . . Low Security (%) 100 | 100 100 100 100 100 Level 1 . | . . . . . Level 2 . | . . . . . Level 3 . | . . . . . Level 4 . | . . . . . Level 5 . | . . . . . High Security . | . . . . . Max Security . | . . . . . Squads Dispatched 2 | . 1 . 1 . Investigation . | . . . . . Extermination . | . . . . . Reinforcement 2 | . 1 . 1 . Assault . | . . . . . Garrison . | . . . . . Intercept . | . . . . . Searches Triggered . | . . . . . Construction Impeded 1 | . . . 1 . Haulers Reinforced . | . . . . . Active Scanning Responses . | . . . . . Cargo Convoy Interrupts . | . . . . . Stealth | -11 -10 -10 -9 -9 --------- Run | Yrd Mat Min Mat Min Distress Signals 2 | . . . 2 . Communications Jammed . | . . . . . Distress Signals . | . . . . . Times Spotted 43 | . 3 . 22 18 Peak Tracking Total 15 | . 1 . 6 15 Tactical Retreats . | . . . . . Traps | -11 -10 -10 -9 -9 ------- Run | Yrd Mat Min Mat Min Traps Triggered . | . . . . . Indirectly . | . . . . . Trap Hack Attempts . | . . . . . Triggered . | . . . . . Disarmed . | . . . . . Reprogrammed . | . . . . . Reused . | . . . . . Traps Extracted . | . . . . . Installed . | . . . . . Triggered . | . . . . . Machines | -11 -10 -10 -9 -9 ---------- Run | Yrd Mat Min Mat Min Machines Disabled 3 | . . . 2 1 Max in Single Turn 2 | . . . 2 1 Machines Repaired . | . . . . . Machines Dismantled . | . . . . . Machines Sabotaged . | . . . . . Overloaded Fab Kills . | . . . . . Hacking | -11 -10 -10 -9 -9 --------- Run | Yrd Mat Min Mat Min Machines Accessed 3 | . . . 3 . Terminals 3 | . . . 3 . Fabricators . | . . . . . Repair Stations . | . . . . . Recycling Units . | . . . . . Scanalyzers . | . . . . . Garrison Access . | . . . . . Total Hacks 5 | . . . 5 . Successful 3 | . . . 3 . Failed 2 | . . . 2 . Catastrophic . | . . . . . Database Lockouts . | . . . . . Manual . | . . . . . Terminals 5 | . . . 5 . Fabricators . | . . . . . Repair Stations . | . . . . . Recycling Units . | . . . . . Scanalyzers . | . . . . . Garrison Access . | . . . . . Terminal Hacks 3 | . . . 3 . Hauler Manifests 1 | . . . 1 . Zone Layout 2 | . . . 2 . Fabricator Hacks . | . . . . . Repair Station Hacks . | . . . . . Recycling Unit Hacks . | . . . . . Scanalyzer . | . . . . . Garrison Access Hacks . | . . . . . Unauthorized Hacks . | . . . . . Terminals . | . . . . . Fabricators . | . . . . . Repair Stations . | . . . . . Recycling Units . | . . . . . Scanalyzers . | . . . . . Garrison Access . | . . . . . Data Cores Recovered . | . . . . . Used . | . . . . . Hacking Detections 3 | . . . 3 . Full Trace Events . | . . . . . Feedback Events . | . . . . . Feedback Blocked . | . . . . . Robot Schematics Acquired . | . . . . . Robots Built . | . . . . . Authchips . | . . . . . Time . | . . . . . Total Robot Build Rating . | . . . . . Part Schematics Acquired . | . . . . . Parts Built . | . . . . . Authchips . | . . . . . Time . | . . . . . Total Part Build Rating . | . . . . . Parts Repaired . | . . . . . Time . | . . . . . Parts Recycled . | . . . . . Recycled Matter . | . . . . . Retrieved Matter . | . . . . . Retrieved Components . | . . . . . Parts Scanalyzed . | . . . . . Part Schematics Acquired . | . . . . . Parts Damaged . | . . . . . Bothacking | -11 -10 -10 -9 -9 ------------ Run | Yrd Mat Min Mat Min Used RIF Installer . | . . . . . Robots Hacked . | . . . . . Non-combat . | . . . . . Combat . | . . . . . Robot Hacks Applied . | . . . . . Relay Couplers Released . | . . . . . Fabnet Peak Effective % . | . . . . . Robots Rewired . | . . . . . Allies Hacked . | . . . . . Hacks Repelled . | . . . . . Allies | -11 -10 -10 -9 -9 -------- Run | Yrd Mat Min Mat Min Total Allies . | . . . . . Largest Group . | . . . . . Highest-Rated Group . | . . . . . Highest-Rated Ally . | . . . . . Total Orders . | . . . . . Ally Attacks . | . . . . . Total Damage . | . . . . . Kills . | . . . . . Allies Corrupted . | . . . . . Allies Melted . | . . . . . Intel | -11 -10 -10 -9 -9 ------- Run | Yrd Mat Min Mat Min Robot Analysis Total . | . . . . . Derelict Logs Recovered 1 | . . . . 1 Drone Launches . | . . . . . Drone Recoveries . | . . . . . Exploration | -11 -10 -10 -9 -9 ------------- Run | Yrd Mat Min Mat Min Turns Passed 1262 | 118 180 370 549 45 Spaces Moved 664 | 90 117 192 245 20 Core 25 | 24 . . . 1 Treads . | . . . . . Legs 639 | 66 117 192 245 19 Wheels . | . . . . . Hover . | . . . . . Flight . | . . . . . Fastest Speed 50 | 50 120 190 120 120 Average Speed 168 | 101 145 190 188 141 Slowest Speed 550 | 120 190 190 190 550 Overloaded Moves . | . . . . . Propulsion Burnouts . | . . . . . Robots Hopped . | . . . . . Cave-ins Triggered . | . . . . . Exploration Rate (%) 17 | 4 20 28 25 9 Regions Visited 4 Branch Regions 2 Pre-discovered Areas 1 | . . 1 . . Known Exits Taken . | . . . . . Unknown Exits Taken 4 | 1 1 1 1 . Scrap Searched 1 | . . 1 . . Spaces Dug . | . . . . . Terrain Destroyed 6 | . . . 6 . Melee . | . . . . . Projectile . | . . . . . AOE 6 | . . . 6 . Terrain Rammed . | . . . . . Walls Destroyed . | . . . . . Machines Disabled . | . . . . . Actions | -11 -10 -10 -9 -9 --------- Run | Yrd Mat Min Mat Min Total 755 | 114 129 197 285 30 Wait 16 | 11 . 4 . 1 Move 660 | 89 116 191 244 20 Hop . | . . . . . Pick Up 18 | 8 5 1 4 . Fast Attach 8 | 4 1 1 2 . Attach 8 | . 3 . 1 4 Detach 3 | . 1 . 1 1 Swap . | . . . . . Drop 4 | . 3 . . 1 Fire 34 | . . . 32 2 Melee . | . . . . . Ram 1 | . . . . 1 Kick 3 | 2 . . 1 . Crush . | . . . . . Escape Stasis . | . . . . . Rewire . | . . . . . Trap . | . . . . . Miscellaneous . | . . . . . Route ------- -11/Scrapyard -10/Materials -10/Mines -9/Materials -9/Mines History --------- Turn | Location | Event 2 | -11/Scrapyard | Met Revision 17 11 | -11/Scrapyard | Discovered new exit (range 15) 119 | -11/Scrapyard | Entered Materials 256 | -10/Materials | Discovered new exit (range 9) 299 | -10/Materials | Entered Mines 300 | -10/Mines | Learned location of Storage (-7) 316 | -10/Mines | Build established: Mutant 370 | -10/Mines | Discovered new exit (range 10) 669 | -10/Mines | Entered Materials 669 | -9/Materials | Evolved 2 slots: Propulsion x1, Utility x1 1080 | -9/Materials | Discovered new exit (range 20) 1218 | -9/Materials | Entered Mines 1219 | -9/Mines | Assembled infested the area 1224 | -9/Mines | Assisted by a Guerilla fighting off Assembled 1238 | -9/Mines | Learned Materials emergency access door positions 1257 | -9/Mines | Core integrity fell below 50% 1262 | -9/Mines | Core integrity fell below 20% 1263 | -9/Mines | Destroyed by as-90339 with Assembled Blade Last Messages --------------- HV Slug penetrates Wall. HV Slug penetrates as-17654. Slammed into as-89894. Ion Engine destroyed. System corrupted by crushing effect (+1). HV Slug penetrates as-17654. as-17654 suffers critical hit (Destroy). as-17654 destroyed. Shock Bomb Launcher destroyed. RN-4FJ(h) destroyed. Med. Laser destroyed. [Achievement: Let's See Who's Tougher] as-99125 destroyed. as-95486 destroyed. Destroyed Asb. Hover Unit. as-77819 destroyed. Destroyed Asb. F-torch. System corrupted: Heat flow error (+282). Critical hit (Destroy). Shock Bomb Launcher destroyed. Map ----- +----------------------------------------------------+ | | | ??????#???????????????????????? | | ???##? ??#????????????????????? | | ??##T#"##"##??????????????????? | | ??# %% #??????????????????? | | ??# %[[ #??????????????????? | | ??# #??????????????????? | | ??# " #??????????????????? | | ??# """ #??????????????????? | | ??# """ #??????????????????? | | ??# #??????????????????? | | ??# #??????????????????? | | ??### #####??????????????????? | | ????# =#??????????????????????? | | ????#!%#??????????????????????? | | ????# #??????????????????????? | | ????# #??????????????????????? | | ????#a #??????????????????????? | | ????; %#??????????????????????? | | ????; a##### #?????????????? | | ????# a #?????????????? | | ????# #### ##???????????? | | ????# #????? ##??????????? | | ????#a #### #??????????? | | ????#a%a%a a ????????? | | ????#a@% #???????????? | | ????###### ##???????????? | | ??????????? ##????????????? | | ???????????? ##?????????????? | | ????????????? #??????????????? | | ?????????????? #?????????????? | | ???????????????? ????????????? | | ????????????????? ???????????? | | ??????????????????????????????? | | ??????????????????????????????? | | ??????????????????????????????? | | ??????????????????????????????? | | ??????????????????????????????? | | ??????????????????????????????? | | ??????????????????????????????? | | ??????????????????????????????? | | ??????????????????????????????? | | ??????????????????????????????? | | ??????????????????????????????? | | ??????????????????????????????? | | ??????????????????????????????? | | ??????????????????????????????? | | ??????????????????????????????? | | ??????????????????????????????? | | ??????????????????????????????? | +----------------------------------------------------+ Best States ------------- Heat Dissipation 47 Energy Generation 10 Energy Capacity 250 Matter Stores 300 Matter Capacity 300 Sight Range 16 Terrain Scan Density 10 Armor Coverage 150 Propulsion Shielding 33 Evasion (%) 55 Item Schematics ----------------- None Robot Schematics ------------------ None Fabricated ------------ Nothing Alien Tech Used ----------------- None Achievements -------------- Let's See Who's Tougher Shopping List Challenges ------------ None Game ------ Seed DimensionalStormSource Manual? 0 Play Time 00:21:54 Cumulative 5.9 hours Start 2024.03.25 @ 06:48:28 End 2024.03.25 @ 07:10:04 Sessions 1 Manual Loads 0 Difficulty Rogue Special Mode None Game No. 6 Rogue 6 Adventurer 0 Explorer 0 Win Type - Total 0 Types 0/0/0/0/0/0/0/0/0 Lore% 1 Gallery% 11 Achievement% 10 Wizard Run 0 Options --------- Layout 1 ASCII 0 Keyboard 1 Movement Arrows Keybinds 0 Fullscreen 1 Font 24/Smallcaps Map View 50x35 Zoom Use 0% Tactical HUD 0 Map Filters NONE Filters NONE Steam 1 RUN: 23f4bf4e-7e06-43c5-b11e-0662d6cf464b